[Event "Titled Tuesday Blitz June 27 Late 2023"]
[White "Muhammed, Shuaau"]
[Black "Kostiukov, Alexandr"]
[WhiteFideId "16700406"]
[BlackFideId "14108100"]
[WhiteElo "2338"]
[BlackElo "2278"]
[Result "0-1"]
[Round "11"]
[TimeControl "180+2"]
[Date "2023.06.27"]
[WhiteClock "0:02:02"]
[BlackClock "0:00:26"]
[Board "93"]

1. e4 {[%clk 0:02:56]}  c5 {[%clk 0:02:59]} 2. Nf3 {[%clk 0:02:55]}  g6 {[%clk 0:02:59]} 3. Nc3 {[%clk 0:02:56]}  Bg7 {[%clk 0:02:59]} 4. Bc4 {[%clk 0:02:56]}  Nc6 {[%clk 0:02:59]} 5. O-O {[%clk 0:02:56]}  e6 {[%clk 0:03:00]} 6. d3 {[%clk 0:02:56]}  Nge7 {[%clk 0:02:59]} 7. Re1 {[%clk 0:02:56]}  O-O {[%clk 0:02:59]} 8. Bg5 {[%clk 0:02:54]}  h6 {[%clk 0:02:58]} 9. Bxe7 {[%clk 0:02:54]}  Qxe7 {[%clk 0:02:51]} 10. a4 {[%clk 0:02:53]}  b6 {[%clk 0:02:39]} 11. e5 {[%clk 0:02:52]}  Bb7 {[%clk 0:02:32]} 12. Nb5 {[%clk 0:02:52]}  Rad8 {[%clk 0:02:26]} 13. Nd6 {[%clk 0:02:50]}  Ba8 {[%clk 0:02:26]} 14. Qd2 {[%clk 0:02:33]}  Nxe5 {[%clk 0:02:04]} 15. Nxe5 {[%clk 0:02:34]}  Qxd6 {[%clk 0:01:57]} 16. f4 {[%clk 0:02:34]}  Qd4+ {[%clk 0:01:53]} 17. Kh1 {[%clk 0:02:34]}  Qxb2 {[%clk 0:01:52]} 18. Reb1 {[%clk 0:02:31]}  Qd4 {[%clk 0:01:51]} 19. a5 {[%clk 0:02:31]}  d6 {[%clk 0:01:39]} 20. Nf3 {[%clk 0:02:31]}  Bxf3 {[%clk 0:01:37]} 21. gxf3 {[%clk 0:02:29]}  Qc3 {[%clk 0:01:07]} 22. Qc1 {[%clk 0:02:20]}  d5 {[%clk 0:01:00]} 23. Ba6 {[%clk 0:02:18]}  bxa5 {[%clk 0:00:43]} 24. Ra3 {[%clk 0:02:16]}  Qd4 {[%clk 0:00:41]} 25. Rxa5 {[%clk 0:02:16]}  Qf2 {[%clk 0:00:35]} 26. Qf1 {[%clk 0:02:16]}  Qxc2 {[%clk 0:00:34]} 27. Rc1 {[%clk 0:02:11]}  Qd2 {[%clk 0:00:30]} 28. Raxc5 {[%clk 0:02:10]}  Qxf4 {[%clk 0:00:29]} 29. Rc7 {[%clk 0:02:10]}  Be5 {[%clk 0:00:26]} 30. Qg2 {[%clk 0:02:02]}  Bxc7 {[%clk 0:00:26]} 0-1


[Site "https://www.chess.com"]

[Event "Titled Tuesday Blitz June 27 Late 2023"]
[White "Haitin, Ilja"]
[Black "Vila Dupla, Aurelio"]
[WhiteFideId "4501764"]
[BlackFideId "2203383"]
[WhiteElo "2335"]
[BlackElo "2192"]
[Result "0-1"]
[Round "11"]
[TimeControl "180+2"]
[Date "2023.06.27"]
[WhiteClock "0:00:00"]
[BlackClock "0:00:10"]
[Board "94"]

1. d4 {[%clk 0:03:00]}  Nf6 {[%clk 0:02:59]} 2. c4 {[%clk 0:02:59]}  g6 {[%clk 0:02:56]} 3. Nc3 {[%clk 0:02:59]}  d5 {[%clk 0:02:57]} 4. cxd5 {[%clk 0:02:58]}  Nxd5 {[%clk 0:02:58]} 5. e4 {[%clk 0:02:59]}  Nxc3 {[%clk 0:02:58]} 6. bxc3 {[%clk 0:02:59]}  Bg7 {[%clk 0:02:58]} 7. Bc4 {[%clk 0:02:59]}  O-O {[%clk 0:02:58]} 8. Ne2 {[%clk 0:03:00]}  c5 {[%clk 0:02:58]} 9. O-O {[%clk 0:03:00]}  Nc6 {[%clk 0:02:59]} 10. Rb1 {[%clk 0:02:59]}  cxd4 {[%clk 0:02:52]} 11. cxd4 {[%clk 0:02:58]}  Nxd4 {[%clk 0:02:52]} 12. Nxd4 {[%clk 0:02:58]}  Qxd4 {[%clk 0:02:34]} 13. Qe2 {[%clk 0:02:58]}  Bg4 {[%clk 0:01:45]} 14. Qxg4 {[%clk 0:02:54]}  Qxc4 {[%clk 0:01:45]} 15. Rxb7 {[%clk 0:02:54]}  Qxa2 {[%clk 0:01:45]} 16. Rxe7 {[%clk 0:02:52]}  a5 {[%clk 0:01:45]} 17. h4 {[%clk 0:02:51]}  h5 {[%clk 0:01:44]} 18. Qd7 {[%clk 0:02:49]}  a4 {[%clk 0:01:43]} 19. Bg5 {[%clk 0:02:42]}  a3 {[%clk 0:01:39]} 20. e5 {[%clk 0:02:38]}  Rad8 {[%clk 0:01:31]} 21. Qa7 {[%clk 0:02:37]}  Ra8 {[%clk 0:01:28]} 22. Qb7 {[%clk 0:02:36]}  Rab8 {[%clk 0:01:26]} 23. Qc7 {[%clk 0:02:33]}  Rb1 {[%clk 0:01:21]} 24. e6 {[%clk 0:01:59]}  Rxf1+ {[%clk 0:01:21]} 25. Kxf1 {[%clk 0:02:00]}  Qb1+ {[%clk 0:01:21]} 26. Bc1 {[%clk 0:01:59]}  a2 {[%clk 0:01:17]} 27. Rxf7 {[%clk 0:01:38]}  Rxf7 {[%clk 0:01:16]} 28. exf7+ {[%clk 0:01:35]}  Kf8 {[%clk 0:01:04]} 29. Qd8+ {[%clk 0:00:57]}  Kxf7 {[%clk 0:01:02]} 30. Qd5+ {[%clk 0:00:58]}  Kf6 {[%clk 0:00:49]} 31. Qd6+ {[%clk 0:00:46]}  Kf5 {[%clk 0:00:41]} 32. Qd5+ {[%clk 0:00:33]}  Be5 {[%clk 0:00:28]} 33. Qf7+ {[%clk 0:00:18]}  Ke4 {[%clk 0:00:21]} 34. Qc4+ {[%clk 0:00:15]}  Bd4 {[%clk 0:00:20]} 35. f3+ {[%clk 0:00:15]}  Ke5 {[%clk 0:00:18]} 36. Qc7+ {[%clk 0:00:06]}  Kd5 {[%clk 0:00:14]} 37. Qd7+ {[%clk 0:00:06]}  Kc4 {[%clk 0:00:14]} 38. Qa4+ {[%clk 0:00:05]}  Kd3 {[%clk 0:00:11]} 39. Qd1+ {[%clk 0:00:05]}  Kc3 {[%clk 0:00:10]} 40. Qd2+ {[%clk 0:00:04]}  Kc4 {[%clk 0:00:10]} 41. Qe2+ {[%clk 0:00:00]}  Qd3 {[%clk 0:00:10]} 0-1


[Site "https://www.chess.com"]

[Event "Titled Tuesday Blitz June 27 Late 2023"]
[White "Vargas, Mauricio"]
[Black "Powell, Paul"]
[WhiteFideId "4404572"]
[BlackFideId "2005840"]
[WhiteElo "1875"]
[BlackElo "2184"]
[Result "0-1"]
[Round "11"]
[TimeControl "180+2"]
[Date "2023.06.27"]
[WhiteClock "0:00:00"]
[BlackClock "0:00:14"]
[Board "99"]

1. e4 {[%clk 0:02:37]}  c5 {[%clk 0:02:59]} 2. Nc3 {[%clk 0:02:36]}  Nc6 {[%clk 0:02:50]} 3. f4 {[%clk 0:02:37]}  g6 {[%clk 0:02:49]} 4. Nf3 {[%clk 0:02:38]}  Bg7 {[%clk 0:02:50]} 5. Bb5 {[%clk 0:02:38]}  Rb8 {[%clk 0:02:42]} 6. Bxc6 {[%clk 0:02:37]}  bxc6 {[%clk 0:02:42]} 7. O-O {[%clk 0:02:38]}  d6 {[%clk 0:02:42]} 8. d3 {[%clk 0:02:37]}  Nf6 {[%clk 0:02:42]} 9. Qe1 {[%clk 0:02:36]}  O-O {[%clk 0:02:40]} 10. Qh4 {[%clk 0:02:35]}  e6 {[%clk 0:02:35]} 11. f5 {[%clk 0:02:33]}  Nd7 {[%clk 0:02:26]} 12. Bg5 {[%clk 0:02:33]}  f6 {[%clk 0:02:24]} 13. Bh6 {[%clk 0:02:31]}  Ne5 {[%clk 0:02:15]} 14. Bxg7 {[%clk 0:02:25]}  Kxg7 {[%clk 0:02:14]} 15. fxg6 {[%clk 0:02:18]}  hxg6 {[%clk 0:02:11]} 16. Nxe5 {[%clk 0:02:04]}  dxe5 {[%clk 0:02:08]} 17. Nd1 {[%clk 0:01:50]}  Ba6 {[%clk 0:02:05]} 18. Qh3 {[%clk 0:01:26]}  Qd7 {[%clk 0:01:57]} 19. b3 {[%clk 0:01:24]}  Rh8 {[%clk 0:01:48]} 20. Qg3 {[%clk 0:01:23]}  Rh5 {[%clk 0:01:35]} 21. h3 {[%clk 0:01:20]}  Rbh8 {[%clk 0:01:25]} 22. Kh1 {[%clk 0:01:19]}  Rg5 {[%clk 0:00:47]} 23. Qf3 {[%clk 0:01:17]}  Rf8 {[%clk 0:00:46]} 24. Ne3 {[%clk 0:01:16]}  f5 {[%clk 0:00:35]} 25. Rae1 {[%clk 0:00:37]}  Rh8 {[%clk 0:00:23]} 26. exf5 {[%clk 0:00:18]}  exf5 {[%clk 0:00:21]} 27. Nc4 {[%clk 0:00:10]}  Bxc4 {[%clk 0:00:20]} 28. dxc4 {[%clk 0:00:10]}  f4 {[%clk 0:00:20]} 29. Rd1 {[%clk 0:00:10]}  Qe6 {[%clk 0:00:18]} 30. Rd2 {[%clk 0:00:07]}  Rg3 {[%clk 0:00:17]} 31. Qe2 {[%clk 0:00:05]}  Rhxh3+ {[%clk 0:00:14]} 32. gxh3 {[%clk 0:00:02]}  Qxh3+ {[%clk 0:00:14]} 33. Qh2 {[%clk 0:00:00]}  Qxf1+ {[%clk 0:00:14]} 0-1


[Site "https://www.chess.com"]